fUSD/lending_fUSD_20241004
["ID","MTS","AMOUNT","RATE_DAILY","PERIOD"]
[339810989,1728015042720,-12431.61514992,0.000109,2]
[339810990,1728015042732,-7981.01020727,0.000109,2]
[339810991,1728015042742,-259.4880914,0.000109,2]
[339810992,1728015042753,-304.39364493,0.000109,2]
[339810993,1728015042764,-1979.18188074,0.000109,2]
[339811004,1728015045431,-138412.89058266,0.000109,2]
[339811005,1728015045441,-49992.8427,0.000109,2]
[339811006,1728015045451,-174.42153575,0.000109,2]
[339811007,1728015045460,-150.48,0.000109,2]
[339811008,1728015045469,-769.0,0.000109,2]
[339811009,1728015045478,-150.0,0.000109,2]
[339811010,1728015045487,-150.0,0.000109,2]
[339811011,1728015045496,-300.0,0.000109,2]
[339811012,1728015045505,-167.72,0.000109,2]
[339811013,1728015045514,-1508.06,0.000109,2]
[339811014,1728015045523,-718.51,0.000109,2]
[339811015,1728015045532,-153.26,0.000109,2]
[339811016,1728015045541,-150.0,0.000109,2]
[339811017,1728015045550,-150.0,0.000109,2]
[339811018,1728015045559,-150.0,0.000109,2]
[339811019,1728015045569,-150.0,0.000109,2]
[339811020,1728015045578,-150.0,0.000109,2]
[339811021,1728015045588,-150.0,0.000109,2]
[339811022,1728015045598,-150.0,0.000109,2]
[339811023,1728015045607,-150.0,0.000109,2]
[339811024,1728015045617,-150.0,0.000109,2]
[339811025,1728015045627,-150.0,0.000109,2]
[339811026,1728015045638,-150.0,0.000109,2]
[339811027,1728015045648,-150.0,0.000109,2]
[339811028,1728015045657,-150.0,0.000109,2]
[339811029,1728015045666,-150.0,0.000109,2]
[339811030,1728015045681,-150.0,0.000109,2]
[339811031,1728015045690,-150.0,0.000109,2]
[339811032,1728015045701,-150.0,0.000109,2]
[339811033,1728015045710,-198.78,0.000109,2]
[339811034,1728015045719,-177.3164375,0.000109,2]
[339811035,1728015045728,-499.99,0.00010924,2]
[339811036,1728015045737,-2305.92,0.00010924,2]
[339811037,1728015045746,-235.92,0.00010938,2]
[339811038,1728015045756,-164.56,0.00010959,2]
[339811039,1728015045764,-250.0,0.00010959,2]
[339811040,1728015045774,-161.0,0.00010959,2]
[339811041,1728015045783,-150.0,0.00010973,2]
[339811042,1728015045792,-422.1098895,0.00010996,2]
[339811043,1728015045801,-3332.9357626,0.00010996,2]
[339811044,1728015045810,-8268.5317002,0.00010996,2]
[339811045,1728015045819,-246.42192017,0.00010999,2]
[339811046,1728015045829,-58088.22076028,0.00011,2]
[339811048,1728015046071,-5008.17589993,0.00011,2]
[339811049,1728015046086,-122297.4226101,0.00011,2]
[339811050,1728015046097,-250.10479714,0.00011,2]
[339811051,1728015046109,-282.58601024,0.00011,2]
[339811052,1728015046121,-12181.45042317,0.00011,2]
[339811053,1728015135747,222.0,0.00015,30]
[339811054,1728015417151,178.46,8.666e-05,2]
[339811055,1728015795088,16247.59,0.00010225,2]
[339811056,1728015906808,169.53,8.467e-05,2]
[339811090,1728016174596,-188.73,0.0001028,2]
[339811115,1728016231563,-250.0,0.00010341,2]
[339811118,1728016231573,-1000.0,0.0001046,2]
[339811120,1728016231583,-500.0,0.000105,3]
[339811122,1728016231592,-1000.0,0.000106,3]
[339811124,1728016231602,-169.77,0.00010629,2]
[339811126,1728016231611,-1500.0,0.000107,3]
[339811128,1728016231620,-169.53,0.00010731,2]
[339811130,1728016231630,-150.0,0.000108,2]
[339811131,1728016231640,-150.56,0.000108,2]
[339811132,1728016231650,-2100.0,0.000108,3]
[339811133,1728016231661,-499.99,0.00010801,2]
[339811134,1728016231670,-567.0,0.000109,2]
[339811135,1728016231679,-149.57059371,0.000109,3]
[339811136,1728016231690,-328.1431498,0.000109,3]
[339811137,1728016231793,-439.49484625,0.000109,3]
[339811143,1728016237556,-575.04641781,0.000109,3]
[339811144,1728016237571,-264.27066251,0.000109,3]
[339811145,1728016237584,-400.7858777,0.000109,3]
[339811146,1728016237833,-442.68845222,0.000109,3]
[339811147,1728016237842,-163.85,0.00010959,2]
[339811148,1728016237851,-157.53,0.00010959,2]
[339811149,1728016237861,-216.6807803,0.00010996,2]
[339811150,1728016237871,-8839.2054595,0.00010996,2]
[339811151,1728016237880,-692.10835668,0.00010996,2]
[339811152,1728016237891,-416.39053572,0.00010999,2]
[339811155,1728016239732,-1156.8959991,0.00010999,2]
[339811156,1728016239742,-134.57183268,0.00010999,2]
[339811157,1728016239754,-15.42816732,0.00010999,2]
[339811158,1728016239764,-596.42427668,0.00011,2]
[339811159,1728016239774,-1315.07878577,0.00011,2]
[339811160,1728016239785,-2994.36697904,0.00011,2]
[339811161,1728016239796,-13253.22423378,0.00011,2]
[339811162,1728016239909,-5884.48634923,0.00011,2]
[339811276,1728016574716,250.0,0.00010836,2]
[339811277,1728016673839,152.57,8.946e-05,2]
[339811278,1728016831094,158.44,0.00010774,2]
[339811279,1728017028830,-8438.63543884,0.000109,2]
[339811280,1728017044041,174.63859967,0.000109,2]
[339811281,1728017116812,250.0,0.00010798,2]
[339811283,1728017136117,7594.77189492,0.000109,2]
[339811284,1728017166816,152.57,8.905e-05,2]
[339811285,1728017182807,10000.0,0.00015,30]
[339811286,1728017185164,316.2272,0.000109,2]
[339811304,1728017234873,200.0,0.000105,3]
[339811305,1728017236962,500.0,0.000106,3]
[339811306,1728017239233,700.0,0.000107,3]
[339811307,1728017241675,1000.0,0.000108,3]
[339811308,1728017243977,1200.0,0.000109,3]
[339811309,1728017295165,200.0,0.000105,3]
[339811310,1728017297268,500.0,0.000106,3]
[339811311,1728017299368,700.0,0.000107,3]
[339811312,1728017301467,1000.0,0.000108,3]
[339811313,1728017303583,1300.0,0.000109,3]
[339811314,1728017384549,11670.6508,0.00010843,2]
[339811316,1728017407933,150.98,0.00010827,2]
[339811321,1728017431756,-1000.0,0.00010943,2]
[339811322,1728017431766,-177.74,0.00010959,2]
[339811323,1728017431776,-164.56,0.00010959,2]
[339811324,1728017431788,-152.5,0.0001099,2]
[339811325,1728017431796,-962.30862601,0.00010996,2]
[339811326,1728017431869,-419.20698761,0.00010996,2]
[339811327,1728017431880,-1805.393058,0.00010996,2]
[339811328,1728017431891,-703.37788318,0.00010996,2]
[339811329,1728017431927,-3512.1879641,0.00010996,2]
[339811330,1728017431936,-180.567317,0.00010996,2]
[339811331,1728017431946,-1000.0,0.00010999,2]
[339811332,1728017431954,-150.0,0.00010999,2]
[339811333,1728017431963,-187395.47134305,0.00011,2]
[339811334,1728017431984,-340.78735789,0.00011,2]
[339811335,1728017431995,-816.05578721,0.00011,2]
[339811338,1728017437824,-275.96458678,0.00011,2]
[339811339,1728017437841,-45117.52981854,0.00011,2]
[339811340,1728017437857,-295.0293323,0.00011,2]
[339811341,1728017437886,-1826.19952413,0.00011,2]
[339811342,1728017437898,-770.28030709,0.00011,2]
[339811343,1728017437910,-526.10219939,0.00011,2]
[339811344,1728017437922,-29601.71835579,0.00011,2]
[339811345,1728017437966,-98.27613245,0.00011,2]
[339811346,1728017437978,-310.24010705,0.00011,2]
[339811347,1728017439876,-311.4845134,0.00011,2]
[339811369,1728017442868,-310.132323,0.00011,2]
[339811370,1728017442880,-79407.60121063,0.00011,2]
[339811372,1728017445752,-61303.54393119,0.00011,2]
[339811373,1728017446062,-604.1523552,0.00011,2]
[339811374,1728017446075,-435.93874686,0.00011,2]
[339811375,1728017446086,-1203.491268,0.00011,2]
[339811376,1728017553425,828.5092,0.0001043,2]
[339811377,1728017561560,6947.87360819,0.000109,2]
[339811378,1728017686786,152.57,9.054e-05,2]
[339811379,1728017979646,173.63,0.00010866,2]
[339811380,1728017986907,6253.08624729,0.000109,2]
[339811382,1728018189542,152.57,8.958e-05,2]
[339811383,1728018245226,250.0,0.00010894,2]
[339811384,1728018351843,3546.34555207,0.00010859,2]
[339811385,1728018413071,5627.77762257,0.000109,2]
[339811386,1728018445606,300.0,0.000105,3]
[339811387,1728018447734,600.0,0.000106,3]
[339811388,1728018449825,1000.0,0.000107,3]
[339811389,1728018452181,1300.0,0.000108,3]
[339811390,1728018454462,1600.0,0.000109,3]
[339811398,1728018631991,-158.44,0.00010941,2]
[339811399,1728018632002,-113.7446872,0.00010959,2]
[339811400,1728018632067,-47.2553128,0.00010959,2]
[339811401,1728018632078,-166.38517385,0.00010959,2]
[339811402,1728018632089,-163.85,0.00010959,2]
[339811403,1728018632101,-170.136,0.00010959,2]
[339811404,1728018632110,-19.51351335,0.00010996,2]
[339811408,1728018632262,-312.02099594,0.00010996,2]
[339811409,1728018637923,-2424.99999999,0.00010996,2]
[339811411,1728018638031,-1076.06817968,0.00010996,2]
[339811412,1728018638088,-1342.45075884,0.00010996,2]
[339811413,1728018638097,-150.4727641,0.00010996,2]
[339811414,1728018638107,-3631.81889769,0.00011,2]
[339811423,1728018640079,-845.82255011,0.00011,2]
[339811424,1728018640190,-468.5,0.00011,2]
[339811432,1728018643148,-275.01000006,0.00011,2]
[339811439,1728018646175,-1570.03848482,0.00011,2]
[339811440,1728018646286,-980.19688546,0.00011,2]
[339811456,1728018741773,296.89,9.072e-05,2]
[339811457,1728018771702,261.5931991,0.000109,2]
[339811458,1728018779716,4555.87155855,0.000109,2]
[339811459,1728018783861,904.25264459,0.000109,2]
[339811460,1728018786805,4417.12175762,0.00010899,2]
[339811461,1728018838390,10324.01370274,0.000109,2]
[339811462,1728018843338,7500.0,0.000109,2]
[339811463,1728018884046,3183.16,0.00010901,2]
[339811464,1728018887454,212.07,8.676e-05,2]
[339811465,1728018890001,207.29954463,0.000109,2]
[339811466,1728018898571,250.0,0.00010827,2]
[339811467,1728018902297,174.39546608,0.000109,2]
[339811468,1728018917130,187.36641772,0.000109,2]
[339811469,1728018961382,11688.827271,0.0001089,2]
[339811470,1728018975038,23900.0,0.00010794,2]
[339811471,1728019002656,381.4,0.00010732,2]
[339811472,1728019079636,3712.4026,0.000109,2]
[339811473,1728019096675,1085.6752,0.000109,2]
[339811488,1728019109905,398.60164384,0.000109,2]
[339811489,1728019115059,200.0,0.000105,3]
[339811490,1728019117146,500.0,0.000106,3]
[339811491,1728019118125,174.25,0.00010712,2]
[339811492,1728019119341,700.0,0.000107,3]
[339811493,1728019121481,1000.0,0.000108,3]
[339811494,1728019123585,1300.0,0.000109,3]
[339811495,1728019137967,350.61,0.000109,3]
[339811496,1728019138268,185.13613258,0.000109,2]
[339811497,1728019213332,2317.38431477,0.00010859,2]
[339811498,1728019216432,297.38,0.000109,3]
[339811499,1728019244930,265.73442922,0.000109,2]
[339811500,1728019254566,2837.90902091,0.000109,2]
[339811501,1728019263911,10892.03729253,0.000109,2]
[339811502,1728019271239,250.0,0.00010252,2]
[339811503,1728019277347,19196.49462948,0.000109,2]
[339811504,1728019299036,158.97,0.00010205,2]
[339811505,1728019299240,158.97,0.00010211,2]
[339811506,1728019299456,158.97,0.00010217,2]
[339811507,1728019299674,158.97,0.00010222,2]
[339811508,1728019361587,328.14,8.219e-05,2]
[339811509,1728019396967,500.0,8.152e-05,2]
[339811510,1728019397348,500.0,8.153e-05,2]
[339811511,1728019400150,-158.97,0.00010228,2]
[339811512,1728019405517,250.0,0.00010093,2]
[339811513,1728019433312,-158.97,0.00010234,2]
[339811514,1728019487145,-158.97,0.00010239,2]
[339811515,1728019498915,-158.97,0.00010245,2]
[339811516,1728019498937,-158.97,0.00010251,2]
[339811517,1728019498959,-235.43,0.00010252,2]
[339811518,1728019498982,-158.97,0.00010256,2]
[339811519,1728019519466,2398.47260096,9e-05,2]
[339811520,1728019529082,206.99878439,0.000101,2]
[339811521,1728019531293,190.7,0.00010177,2]
[339811522,1728019534009,229.8330847,0.0001,2]
[339811523,1728019639181,-328.14,0.00010481,2]
[339811537,1728019658632,-692.93348117,0.0001089,2]
[339811538,1728019723418,174.25,0.00010418,2]
[339811543,1728019772138,173.63,0.0001044,2]
[339811547,1728019806929,1000.0,0.00010484,2]
[339811560,1728019832103,-1000.0,0.00010899,2]
[339811562,1728019832113,-298.29851612,0.00010899,2]
[339811563,1728019832125,-1.70148388,0.00010899,2]
[339811564,1728019832134,-150.0,0.00010899,2]
[339811565,1728019832143,-109.69509497,0.000109,2]
[339811566,1728019832163,-5045.81686439,0.000109,2]
[339811567,1728019832174,-2613.10872722,0.000109,2]
[339811568,1728019832187,-792.5901174,0.000109,2]
[339811569,1728019832200,-598.97184433,0.000109,2]
[339811570,1728019832214,-420.816,0.000109,2]
[339811571,1728019832230,-543.82427233,0.000109,2]
[339811572,1728019832292,-542.67878054,0.000109,2]
[339811573,1728019832305,-3831.16040795,0.000109,2]
[339811574,1728019832408,-1974.8225,0.000109,2]
[339811575,1728019832419,-1830.0504098,0.000109,2]
[339811577,1728019838371,-24856.92855159,0.000109,2]
[339811578,1728019838380,-208.94796885,0.000109,2]
[339811579,1728019838389,-1311.0959,0.000109,2]
[339811580,1728019838399,-154.62586306,0.000109,2]
[339811581,1728019838408,-13959.3691,0.000109,2]
[339811582,1728019838421,-276.31373334,0.000109,2]
[339811583,1728019838430,-9802.83356325,0.000109,2]
[339811585,1728019838439,-195.295982,0.000109,2]
[339811587,1728019838458,-169.22076499,0.000109,2]
[339811589,1728019838467,-398.60164384,0.000109,2]
[339811591,1728019838477,-1380.0,0.000109,2]
[339811593,1728019838485,-330.46568764,0.000109,2]
[339811595,1728019838494,-1266.917,0.00010922,2]
[339811597,1728019838503,-625.0,0.00010922,2]
[339811599,1728019838512,-1153.081,0.00010922,2]
[339811601,1728019838522,-162.72,0.00010959,2]
[339811602,1728019838531,-1221.51,0.00010959,2]
[339811603,1728019838541,-250.0,0.00010959,2]
[339811605,1728019838550,-169.58,0.00010959,2]
[339811606,1728019838562,-320.29,0.00010959,2]
[339811607,1728019838571,-246.552,0.00010972,2]
[339811608,1728019838579,-162.203,0.00010972,2]
[339811609,1728019838588,-500.40303742,0.00010973,2]
[339811610,1728019838598,-501.80614146,0.00010973,2]
[339811611,1728019838607,-503.39701948,0.00010973,2]
[339811612,1728019838615,-159.7223345,0.00010973,2]
[339811614,1728019838624,-555.247,0.00010973,2]
[339811615,1728019838633,-1914.653,0.00010973,2]
[339811617,1728019838643,-1910.461,0.00010973,2]
[339811619,1728019838652,-3366.688,0.00010973,2]
[339811621,1728019838661,-812.0,0.00010973,2]
[339811623,1728019838670,-1082.0,0.00010973,2]
[339811625,1728019838679,-283.161,0.00010973,2]
[339811626,1728019838689,-1296.0,0.00010973,2]
[339811628,1728019838698,-448.999,0.00010973,2]
[339811630,1728019838707,-3347.81576334,0.0001098,2]
[339811632,1728019838717,-299.99,0.0001098,2]
[339811634,1728019838726,-152.8,0.0001099,2]
[339811636,1728019838736,-295.81731692,0.0001099,2]
[339811638,1728019838745,-1041.9664437,0.00010997,2]
[339811640,1728019838755,-5493.3473852,0.00010997,2]
[339811642,1728019838764,-358.1735417,0.00010997,2]
[339811644,1728019838774,-999.99,0.00010997,2]
[339811646,1728019838783,-499.99,0.00010997,2]
[339811649,1728019838792,-752.36382137,0.00010997,2]
[339811651,1728019838802,-150.88728716,0.00010999,2]
[339811652,1728019838812,-319.23972953,0.00010999,2]
[339811654,1728019838822,-601.77500241,0.00010999,2]
[339811656,1728019838831,-500.0,0.00010999,2]
[339811658,1728019838841,-500.0,0.00010999,2]
[339811660,1728019838850,-500.0,0.00010999,2]
[339811661,1728019838859,-160.93495787,0.00010999,2]
[339811662,1728019838869,-500.0,0.00010999,2]
[339811663,1728019838878,-605.08130238,0.00010999,2]
[339811664,1728019838887,-272.06935935,0.00010999,2]
[339811665,1728019838897,-500.0,0.00010999,2]
[339811666,1728019838906,-7228.61318186,0.00011,2]
[339811667,1728019838916,-9044.0,0.00011,3]
[339811668,1728019838925,-272422.53943239,0.00011,2]
[339811669,1728019838935,-672704.91364355,0.00011,2]
[339811670,1728019838947,-6671.76743209,0.00011,2]
[339811671,1728019838959,-990.63368508,0.00011,2]
[339811673,1728019840137,-277.17,0.00010922,2]
[339811674,1728019840397,-13248.524,0.00010922,2]
[339811675,1728019840407,-7164.445,0.00011,2]
[339811804,1728019843548,-319.23972953,0.00010999,2]
[339811805,1728019843558,-415.76027047,0.00011,2]
[339811818,1728019846547,-3603.1065045,0.00010922,2]
[339811819,1728019846714,200.0,0.000105,3]
[339811820,1728019848841,500.0,0.000106,3]
[339811821,1728019851025,800.0,0.000107,3]
[339811822,1728019853016,1100.0,0.000108,3]
[339811823,1728019864132,334.3,8.795e-05,2]
[339811824,1728019871034,250.0,0.00010697,2]
[339811825,1728019942624,250.0,0.00010702,2]
[339811826,1728020012573,212.07,8.482e-05,2]
[339811827,1728020055370,286.05,0.00010625,2]
[339811828,1728020410288,317.58,8.404e-05,2]
[339811829,1728020478586,-200.0,0.00010614,2]
[339811830,1728020487323,250.0,0.00010225,2]
[339811831,1728020550518,-317.58,0.00010667,2]
[339811832,1728020711005,286.05,0.00010182,2]
[339811843,1728020930930,1000.0,0.00010192,2]
[339811845,1728020966765,308.71,8.27e-05,2]
[339811846,1728020989438,223.07,0.00010166,2]
[339811847,1728021009812,250.0,0.00010186,2]
[339811852,1728021032347,-308.71,0.00010534,2]
[339811853,1728021032359,-901.56134977,0.00010793,2]
[339811854,1728021032369,-7420.26397603,0.000108,2]
[339811855,1728021032405,-340.28165674,0.000108,2]
[339811856,1728021032462,-2946.57874193,0.000108,2]
[339811857,1728021032473,-3834.18185265,0.000108,2]
[339811858,1728021032484,-655.60712406,0.000108,2]
[339811859,1728021032579,-6187.47543356,0.000108,2]
[339811860,1728021032590,-263.99149982,0.000108,2]
[339811861,1728021032601,-5740.24114568,0.000108,2]
[339811866,1728021038279,-2492.1,0.000108,2]
[339811911,1728021040473,-1483.6002183,0.000108,2]
[339811912,1728021040484,-1059.79707892,0.000108,2]
[339812112,1728021046545,-3093.68535008,0.000108,2]
[339812114,1728021147470,22741.29,0.00010206,2]
[339812115,1728021469363,328.69,8.219e-05,2]
[339812116,1728021486298,173.63,0.000101,2]
[339812117,1728021488885,250.0,0.000101,2]
[339812119,1728021557677,1000.0,0.00010198,2]
[339812120,1728021588954,250.0,0.00010189,2]
[339812121,1728022023163,312.25,8.229e-05,2]
[339812122,1728022065382,200.0,0.00010131,2]
[339812124,1728022109963,250.0,0.00010122,2]
[339812126,1728022231541,-1335.80815159,0.00010383,2]
[339812127,1728022231551,-500.0,0.00010483,2]
[339812128,1728022231561,-500.0,0.00010483,2]
[339812129,1728022231570,-389.5073893,0.00010483,2]
[339812130,1728022231656,-110.4926107,0.00010483,2]
[339812131,1728022231666,-500.0,0.00010483,2]
[339812132,1728022231675,-2928.08287618,0.00010483,2]
[339812133,1728022231717,-476.09994262,0.00010483,2]
[339812153,1728022237610,-10816.91758924,0.00010483,2]
[339812154,1728022237621,-115.4448773,0.00010483,2]
[339812155,1728022237631,-312.25,0.00010493,2]
[339812156,1728022237640,-300.0,0.00010799,2]
[339812157,1728022237649,-2023.25705267,0.000108,2]
[339812158,1728022237673,-21760.45863702,0.000108,2]
[339812173,1728022239551,-359.05739516,0.000108,2]
[339812174,1728022239563,-31550.27322222,0.000108,2]
[339812196,1728022242741,-278.59999992,0.00010433,2]
[339812197,1728022242752,-356.992007,0.00010433,2]
[339812202,1728022271034,18135.4,0.00010196,2]
[339812203,1728022402333,-1907.6503,0.00010383,2]
[339812204,1728022402361,-300.0,0.00010432,2]
[339812205,1728022402387,-9364.40799308,0.00010433,2]
[339812206,1728022402414,-4773.08338655,0.00010433,2]
[339812207,1728022402440,-788442.86650469,0.000108,2]
[339812208,1728022402464,-200.0,0.000108,2]
[339812209,1728022402486,-1154.39060503,0.00010899,2]
[339812210,1728022402510,-150.0,0.00010899,2]
[339812211,1728022402534,-1000.0,0.000109,2]
[339812212,1728022402557,-167.49071049,0.000109,2]
[339812213,1728022402580,-197.242,0.000109,2]
[339812214,1728022402603,-162.204,0.000109,2]
[339812215,1728022402625,-4637.281,0.000109,2]
[339812216,1728022402652,-261.4398,0.000109,2]
[339812217,1728022402675,-3803.1597,0.000109,2]
[339812218,1728022402700,-7005.3145,0.000109,2]
[339812219,1728022402731,-261.70268636,0.000109,2]
[339812220,1728022402753,-514.9225,0.000109,2]
[339812221,1728022402775,-9188.23323697,0.000109,2]
[339812222,1728022402797,-1222.578,0.000109,2]
[339812223,1728022402818,-416.70780146,0.000109,2]
[339812224,1728022402840,-200.67355549,0.000109,2]
[339812225,1728022402862,-3742.1616655,0.000109,2]
[339812226,1728022402884,-3318.2356,0.000109,2]
[339812227,1728022402905,-220.31045842,0.000109,2]
[339812228,1728022402927,-14822.0955,0.000109,2]
[339812229,1728022402950,-1000.0,0.00010912,2]
[339812230,1728022402972,-150.0,0.00010913,2]
[339812231,1728022402996,-5875.0,0.00010913,2]
[339812232,1728022403020,-1080.0,0.00010913,2]
[339812233,1728022403043,-164.5,0.00010959,2]
[339812234,1728022403066,-161.0,0.00010959,2]
[339812235,1728022403092,-165.34,0.00010959,2]
[339812236,1728022403118,-977.2,0.00010959,2]
[339812237,1728022403144,-162.72,0.00010959,2]
[339812238,1728022403170,-250.0,0.00010959,2]
[339812239,1728022403195,-1500.0,0.00010966,2]
[339812240,1728022403219,-560.243,0.00010973,2]
[339812241,1728022403241,-811.828,0.00010973,2]
[339812242,1728022403263,-935.029,0.00010973,2]
[339812243,1728022403288,-499.99,0.00010973,2]
[339812244,1728022403311,-153.1,0.0001099,2]
[339812245,1728022403337,-4980.4113586,0.00010995,2]
[339812246,1728022403359,-246.6873657,0.00010995,2]
[339812247,1728022403382,-501.4288473,0.00010995,2]
[339812248,1728022403406,-159.61986477,0.00010999,2]
[339812249,1728022403430,-500.0,0.00010999,2]
[339812250,1728022403460,-219761.524092,0.00011,2]
[339812251,1728022403485,-1094471.73099263,0.00011,2]
[339812252,1728022403513,-807498.49597496,0.00011,2]
[339812253,1728022414011,-182609.16565375,0.00011,2]
[339812254,1728022414034,-243.11,0.00011,2]
[339812255,1728022414062,-334823.53339668,0.00011,2]
[339812256,1728022414089,-894216.97054187,0.00011,2]
[339812257,1728022414113,-39286.99007955,0.00011,2]
[339812258,1728022414140,-396780.98650481,0.00011,2]
[339812259,1728022414163,-2000.0,0.00011,2]
[339812260,1728022414186,-200.0,0.00011,2]
[339812261,1728022414210,-200.0,0.00011,2]
[339812262,1728022414233,-160.0,0.00011,2]
[339812263,1728022414256,-160.0,0.00011,2]
[339812264,1728022414280,-160.0,0.00011,2]
[339812265,1728022414303,-160.0,0.00011,2]
[339812266,1728022414326,-160.0,0.00011,2]
[339812267,1728022414352,-160.0,0.00011,2]
[339812268,1728022414376,-1000.88,0.00011,2]
[339812269,1728022414400,-295.57873,0.00011,2]
[339812270,1728022414426,-295.57873,0.00011,2]
[339812271,1728022414449,-295.57873,0.00011,2]
[339812272,1728022414473,-295.57873,0.00011,2]
[339812273,1728022414496,-295.57873,0.00011,2]
[339812274,1728022414520,-295.57873,0.00011,2]
[339812275,1728022414542,-295.57873,0.00011,2]
[339812276,1728022414565,-295.57873,0.00011,2]
[339812277,1728022414588,-151.0,0.00011,2]
[339812278,1728022414611,-261.836065,0.00011,2]
[339812279,1728022414634,-318.26,0.00011,2]
[339812280,1728022414657,-222.0,0.0001101,2]
[339812281,1728022414690,-418.29272171,0.00011039,2]
[339812282,1728022414716,-255.0,0.0001109,2]
[339812283,1728022414740,-150.0,0.000111,2]
[339812284,1728022414762,-213.69,0.000111,2]
[339812285,1728022414785,-429.79,0.000111,2]
[339812286,1728022414808,-150.0,0.000111,2]
[339812287,1728022414831,-722.46,0.000111,2]
[339812288,1728022414856,-150.0,0.000111,2]
[339812289,1728022414878,-302.98,0.000111,2]
[339812290,1728022414903,-428.77,0.000111,2]
[339812291,1728022414927,-200.0,0.0001111,2]
[339812292,1728022414951,-200.0,0.0001111,2]
[339812293,1728022414974,-500.0,0.00011199,2]
[339812294,1728022414998,-428.77,0.000112,2]
[339812295,1728022415021,-150.0,0.000112,2]
[339812296,1728022415045,-150.0,0.000112,2]
[339812297,1728022415069,-428.77,0.000112,2]
[339812298,1728022415093,-150.0,0.000112,2]
[339812299,1728022415120,-428.77,0.000112,2]
[339812300,1728022415145,-150.0,0.000112,2]
[339812301,1728022415170,-428.77,0.000112,2]
[339812302,1728022415195,-428.77,0.000112,2]
[339812303,1728022415218,-378.48,0.000112,2]
[339812304,1728022415242,-428.77,0.000112,2]
[339812305,1728022415266,-428.77,0.000112,2]
[339812306,1728022415289,-428.77,0.000112,2]
[339812307,1728022415313,-650.51,0.000112,2]
[339812308,1728022415335,-1129.0,0.000112,2]
[339812309,1728022415360,-288.0,0.00011205,2]
[339812310,1728022415384,-200.0,0.00011221,2]
[339812311,1728022415407,-200.0,0.00011221,2]
[339812312,1728022415433,-501.63806168,0.00011232,2]
[339812313,1728022415457,-44043.62,0.00011233,2]
[339812314,1728022415480,-295.57873,0.00011233,2]
[339812315,1728022415505,-295.57873,0.00011233,2]
[339812316,1728022415528,-160.0,0.00011249,2]
[339812317,1728022415551,-160.0,0.00011249,2]
[339812318,1728022415574,-42949.0,0.00011273,2]
[339812319,1728022415596,-8609.0,0.00011274,2]
[339812320,1728022415619,-428.77,0.000113,2]
[339812321,1728022415642,-200.0,0.00011333,2]
[339812322,1728022415665,-200.0,0.00011333,2]
[339812323,1728022415688,-200.0,0.00011397,2]
[339812324,1728022415715,-223.07,0.00011437,2]
[339812325,1728022415737,-200.0,0.00011447,2]